[Event "TUR-chT Superleague 2018"]
[Site "Ankara"]
[Date "2018.08.03"]
[Round "10"]
[White "Erece, Ece Alkim"]
[Black "Can, Isil"]
[Result "1/2-1/2"]
[ECO "C56"]
[WhiteElo "1788"]
[BlackElo "1862"]
[Annotator "NA"]
[PlyCount "128"]
[EventDate "2018.07.25"]
[EventType "team-tourn"]
[EventCountry "TUR"]
[SourceTitle "playchess.com"]
[Source "ChessBase"]
[SourceQuality "1"]
[TimeControl "40/5400+30:1800+30"]

1. e4 {[%emt 0:00:30]} e5 {[%emt 0:00:30]} 2. Nf3 {[%emt 0:00:30]} Nc6 {[%emt 0:00:00]} 3. d4 {[%emt 0:00:00]} exd4 {[%emt 0:00:00]} 4. Bc4 {[%emt 0:00:00]} Nf6 {[%emt 0:00:00]} 5. O-O {[%emt 0:00:00]} Nxe4 {[%emt 0:02:00]} 6. Re1 {[%emt 0:00:00]} d5 {[%emt 0:00:30]} 7. Bxd5 {[%emt 0:00:30]} Qxd5 {[%emt 0:00:30]} 8. Nc3 {[%emt 0:00:00]} Qa5 {[%emt 0:00:00]} 9. Nxe4 {[%emt 0:00:00]} Be6 {[%emt 0:00:00]} 10. Neg5 {[%emt 0:00:00]} O-O-O {[%emt 0:00:30]} 11. Nxe6 {[%emt 0:00:00]} fxe6 {[%emt 0:00:30]} 12. Rxe6 {[%emt 0:00:00]} h6 {[%emt 0:00:30]} 13. Qe2 {[%emt 0:01:00]} Bd6 {[%emt 0:00:30]} 14. Bd2 {[%emt 0:00:30]} Qd5 {[%emt 0:04:30]} 15. a3 {[%emt 0:06:30]} g5 {[%emt 0:04:30]} 16. Qe4 {[%emt 0:03:30]} Qxe4 {[%emt 0:05:30]} 17. Rxe4 {[%emt 0:00:00]} Bc5 {[%emt 0:08:30]} 18. b4 {[%emt 0:01:00]} Bb6 {[%emt 0:00:30]} 19. Rae1 {[%emt 0:01:30]} Rhf8 {[%emt 0:11:30]} 20. h3 {[%emt 0:04:30]} Rf6 {[%emt 0:12:30]} 21. Re6 {[%emt 0:05:30]} Rdf8 {[%emt 0:01:30]} 22. Rxf6 {[%emt 0:07:30]} Rxf6 {[%emt 0:00:30]} 23. Re4 {[%emt 0:00:00]} Rd6 {[%emt 0:02:30]} 24. Kf1 {[%emt 0:00:00]} Nd8 {[%emt 0:00:30]} 25. h4 {[%emt 0:12:30]} gxh4 {[%emt 0:03:30]} 26. Rxh4 {[%emt 0:03:30]} Nf7 {[%emt 0:11:30]} 27. Ke2 {[%emt 0:04:30]} Kd7 {[%emt 0:04:30]} 28. Kd3 {[%emt 0:02:30]} c5 {[%emt 0:02:30]} 29. bxc5 {[%emt 0:01:30]} Bxc5 {[%emt 0:00:30]} 30. Bb4 {[%emt 0:00:30]} b6 {[%emt 0:00:00]} 31. Nxd4 {[%emt 0:01:30]} a5 {[%emt 0:02:00]} 32. Bc3 {[%emt 0:03:30]} Bxa3 {[%emt 0:02:30]} 33. Kc4 {[%emt 0:01:30]} Bc5 {[%emt 0:00:30]} 34. Kb3 {[%emt 0:04:30]} Rg6 {[%emt 0:05:42]} 35. g4 {[%emt 0:03:30]} Be7 {[%emt 0:04:18]} 36. Rh3 {[%emt 0:06:30]} Rxg4 {[%emt 0:00:56]} 37. Nf5 {[%emt 0:00:00]} Bg5 {[%emt 0:03:10]} 38. Rd3+ {[%emt 0:00:00]} Kc7 {[%emt 0:00:44]} 39. Nd4 {[%emt 0:02:30]} Nd6 {[%emt 0:06:30]} 40. Ne6+ {[%emt 0:00:00]} Kc6 {[%emt 0:00:00]} 41. Be5 {[%emt 0:05:00]} Rb4+ {[%emt 0:04:40]} 42. Ka2 {[%emt 0:00:30]} Nc4 {[%emt 0:05:30]} 43. Bc3 {[%emt 0:02:30]} Ra4+ {[%emt 0:04:30]} 44. Kb1 {[%emt 0:00:30]} Na3+ {[%emt 0:00:33]} 45. Kb2 {[%emt 0:00:30]} Nb5 {[%emt 0:01:21]} 46. Bg7 {[%emt 0:07:30]} Rb4+ {[%emt 0:06:05]} 47. Ka2 {[%emt 0:00:30]} Rc4 {[%emt 0:00:00]} 48. Kb2 {[%emt 0:01:30]} a4 {[%emt 0:02:06]} 49. f4 {[%emt 0:01:30]} Bxf4 {[%emt 0:05:18]} 50. Nxf4 {[%emt 0:00:30]} Rxf4 {[%emt 0:00:00]} 51. Bxh6 {[%emt 0:00:00]} Rb4+ {[%emt 0:02:02]} 52. Ka2 {[%emt 0:01:00]} Rc4 {[%emt 0:00:08]} 53. Kb2 {[%emt 0:01:30]} Nd4 {[%emt 0:01:02]} 54. Rd2 {[%emt 0:00:30]} b5 {[%emt 0:01:02]} 55. c3 {[%emt 0:00:30]} Nb3 {[%emt 0:00:36]} 56. Rg2 {[%emt 0:00:30]} Nc5 {[%emt 0:01:10]} 57. Rg6+ {[%emt 0:00:30]} Kd5 {[%emt 0:00:24]} 58. Rb6 {[%emt 0:00:30]} a3+ {[%emt 0:01:08]} 59. Kxa3 {[%emt 0:00:30]} Rxc3+ {[%emt 0:01:06]} 60. Ka2 {[%emt 0:01:30]} Kc4 {[%emt 0:00:24]} 61. Bf8 {[%emt 0:01:30]} b4 {[%emt 0:01:12]} 62. Rc6 {[%emt 0:00:30]} Kb5 {[%emt 0:00:53]} 63. Rxc5+ {[%emt 0:00:30]} Rxc5 {[%emt 0:00:30]} 64. Bxc5 {[%emt 0:00:30]} Kxc5 {[%emt 0:00:00]} 1/2-1/2

[Event "TUR-chT Superleague 2018"]
[Site "Ankara"]
[Date "2018.08.03"]
[Round "10"]
[White "Yildirim, Ibrahim Halil"]
[Black "Caglar, Ahmet Ata"]
[Result "1/2-1/2"]
[ECO "B31"]
[WhiteElo "1783"]
[BlackElo "2076"]
[Annotator "NA"]
[PlyCount "130"]
[EventDate "2018.07.25"]
[EventType "team-tourn"]
[EventCountry "TUR"]
[SourceTitle "playchess.com"]
[Source "ChessBase"]
[SourceQuality "1"]
[TimeControl "40/5400+30:1800+30"]

1. e4 {[%emt 0:00:30]} c5 {[%emt 0:00:30]} 2. Nf3 {[%emt 0:00:30]} Nc6 {[%emt 0:00:30]} 3. Bb5 {[%emt 0:00:30]} g6 {[%emt 0:00:00]} 4. O-O {[%emt 0:00:00]} Bg7 {[%emt 0:00:00]} 5. Re1 {[%emt 0:00:00]} Nf6 {[%emt 0:00:00]} 6. c3 {[%emt 0:00:30]} O-O {[%emt 0:00:00]} 7. d4 {[%emt 0:01:30]} d5 {[%emt 0:00:30]} 8. e5 {[%emt 0:00:30]} Ne4 {[%emt 0:00:00]} 9. Bxc6 {[%emt 0:05:30]} bxc6 {[%emt 0:00:00]} 10. Nbd2 {[%emt 0:00:30]} Nxd2 {[%emt 0:03:30]} 11. Bxd2 {[%emt 0:00:30]} cxd4 {[%emt 0:00:30]} 12. cxd4 {[%emt 0:00:30]} Qb6 {[%emt 0:00:30]} 13. Bc3 {[%emt 0:21:30]} c5 {[%emt 0:11:30]} 14. dxc5 {[%emt 0:02:30]} Qxc5 {[%emt 0:00:00]} 15. Qd4 {[%emt 0:00:30]} Qxd4 {[%emt 0:01:00]} 16. Nxd4 {[%emt 0:00:30]} Bd7 {[%emt 0:03:30]} 17. b3 {[%emt 0:14:30]} Rfc8 {[%emt 0:01:30]} 18. Bb4 {[%emt 0:04:30]} e6 {[%emt 0:01:30]} 19. f4 {[%emt 0:08:30]} a5 {[%emt 0:01:30]} 20. Bd6 {[%emt 0:04:30]} Bh6 {[%emt 0:06:30]} 21. g3 {[%emt 0:04:30]} Rc3 {[%emt 0:04:30]} 22. Kf2 {[%emt 0:03:30]} Rac8 {[%emt 0:00:30]} 23. h4 {[%emt 0:12:16]} Bg7 {[%emt 0:00:30]} 24. Rad1 {[%emt 0:05:49]} f6 {[%emt 0:04:30]} 25. Re3 {[%emt 0:02:12]} Rxe3 {[%emt 0:04:30]} 26. Kxe3 {[%emt 0:00:30]} fxe5 {[%emt 0:00:00]} 27. Bxe5 {[%emt 0:00:32]} Bf8 {[%emt 0:01:00]} 28. Kd3 {[%emt 0:01:25]} Bb4 {[%emt 0:00:30]} 29. Ke3 {[%emt 0:02:06]} Rc3+ {[%emt 0:02:30]} 30. Rd3 {[%emt 0:01:04]} Rc1 {[%emt 0:00:30]} 31. a4 {[%emt 0:01:38]} Kf7 {[%emt 0:02:30]} 32. Nf3 {[%emt 0:01:44]} Bc8 {[%emt 0:02:30]} 33. Kf2 {[%emt 0:00:37]} Ba6 {[%emt 0:05:30]} 34. Ng5+ {[%emt 0:00:28]} Ke7 {[%emt 0:00:30]} 35. Rf3 {[%emt 0:00:09]} Bc5+ {[%emt 0:02:30]} 36. Kg2 {[%emt 0:00:00]} Rg1+ {[%emt 0:00:30]} 37. Kh2 {[%emt 0:00:20]} h6 {[%emt 0:02:30]} 38. Rc3 {[%emt 0:00:47]} hxg5 {[%emt 0:01:30]} 39. Rxc5 {[%emt 0:00:04]} Rb1 {[%emt 0:00:00]} 40. Rxa5 {[%emt 0:00:00]} Bd3 {[%emt 0:00:00]} 41. Ra7+ {[%emt 0:12:49]} Ke8 {[%emt 0:00:30]} 42. hxg5 {[%emt 0:07:18]} Rxb3 {[%emt 0:02:30]} 43. Bf6 {[%emt 0:00:41]} Ra3 {[%emt 0:01:30]} 44. Kg2 {[%emt 0:04:04]} Bc2 {[%emt 0:03:30]} 45. a5 {[%emt 0:00:26]} Bd3 {[%emt 0:00:30]} 46. Kf2 {[%emt 0:01:23]} Bc4 {[%emt 0:00:00]} 47. g4 {[%emt 0:02:47]} Ra4 {[%emt 0:02:00]} 48. f5 {[%emt 0:02:01]} exf5 {[%emt 0:02:30]} 49. gxf5 {[%emt 0:00:10]} Bd3 {[%emt 0:01:30]} 50. fxg6 {[%emt 0:00:15]} Bxg6 {[%emt 0:00:30]} 51. a6 {[%emt 0:00:57]} d4 {[%emt 0:02:30]} 52. Rg7 {[%emt 0:04:40]} Bf7 {[%emt 0:01:30]} 53. g6 {[%emt 0:00:45]} Bxg6 {[%emt 0:01:30]} 54. a7 {[%emt 0:00:29]} Bf7 {[%emt 0:19:30]} 55. Bxd4 {[%emt 0:00:48]} Bd5 {[%emt 0:00:30]} 56. Ke3 {[%emt 0:00:03]} Bh1 {[%emt 0:01:30]} 57. Rg1 {[%emt 0:00:26]} Bd5 {[%emt 0:00:30]} 58. Rg7 {[%emt 0:00:06]} Bh1 {[%emt 0:00:30]} 59. Bb6 {[%emt 0:00:29]} Ra6 {[%emt 0:03:30]} 60. Bc5 {[%emt 0:00:13]} Ra4 {[%emt 0:00:00]} 61. Kd3 {[%emt 0:00:50]} Bd5 {[%emt 0:01:00]} 62. Re7+ {[%emt 0:00:48]} Kd8 {[%emt 0:00:30]} 63. Rg7 {[%emt 0:00:00]} Bh1 {[%emt 0:02:30]} 64. Bb6+ {[%emt 0:00:56]} Ke8 {[%emt 0:00:00]} 65. Kc3 {[%emt 0:00:38]} Bd5 {[%emt 0:01:00]} 1/2-1/2

[Event "TUR-chT Superleague 2018"]
[Site "Ankara"]
[Date "2018.08.03"]
[Round "10"]
[White "Keskin, Elif"]
[Black "Yorgun, Yaren Naz"]
[Result "1/2-1/2"]
[ECO "D36"]
[WhiteElo "1775"]
[BlackElo "1725"]
[Annotator "NA"]
[PlyCount "129"]
[EventDate "2018.07.25"]
[EventType "team-tourn"]
[EventCountry "TUR"]
[SourceTitle "playchess.com"]
[Source "ChessBase"]
[SourceQuality "1"]
[TimeControl "40/5400+30:1800+30"]

1. d4 {[%emt 0:00:30]} d5 {[%emt 0:00:30]} 2. c4 {[%emt 0:00:00]} e6 {[%emt 0:00:30]} 3. cxd5 {[%emt 0:00:00]} exd5 {[%emt 0:00:00]} 4. Nc3 {[%emt 0:00:00]} Nf6 {[%emt 0:00:00]} 5. Bg5 {[%emt 0:00:00]} Nbd7 {[%emt 0:00:00]} 6. e3 {[%emt 0:00:30]} c6 {[%emt 0:00:00]} 7. Bd3 {[%emt 0:00:30]} Be7 {[%emt 0:00:00]} 8. Qc2 {[%emt 0:01:30]} O-O {[%emt 0:00:00]} 9. h3 {[%emt 0:00:30]} Re8 {[%emt 0:00:30]} 10. Nf3 {[%emt 0:00:00]} Nf8 {[%emt 0:03:30]} 11. g4 {[%emt 0:02:00]} Be6 {[%emt 0:18:30]} 12. O-O-O {[%emt 0:05:30]} b5 {[%emt 0:17:30]} 13. Rdg1 {[%emt 0:02:30]} N6d7 {[%emt 0:09:30]} 14. Bf4 {[%emt 0:08:30]} a6 {[%emt 0:02:30]} 15. Kb1 {[%emt 0:15:30]} c5 {[%emt 0:03:30]} 16. Bf5 {[%emt 0:08:30]} b4 {[%emt 0:07:30]} 17. Ne2 {[%emt 0:01:30]} c4 {[%emt 0:01:30]} 18. e4 {[%emt 0:15:30]} Nb6 {[%emt 0:02:30]} 19. Ne5 {[%emt 0:05:30]} Rc8 {[%emt 0:04:30]} 20. g5 {[%emt 0:06:30]} dxe4 {[%emt 0:13:15]} 21. Bxe6 {[%emt 0:03:30]} Nxe6 {[%emt 0:01:25]} 22. Qxe4 {[%emt 0:02:30]} Qd5 {[%emt 0:02:05]} 23. f3 {[%emt 0:08:06]} Qxe4+ {[%emt 0:05:09]} 24. fxe4 {[%emt 0:00:30]} Nxf4 {[%emt 0:00:00]} 25. Nxf4 {[%emt 0:00:10]} Bd6 {[%emt 0:00:00]} 26. Rd1 {[%emt 0:04:48]} Bxe5 {[%emt 0:02:46]} 27. dxe5 {[%emt 0:00:05]} Rxe5 {[%emt 0:00:34]} 28. Rd6 {[%emt 0:00:34]} Rxe4 {[%emt 0:01:54]} 29. Rxb6 {[%emt 0:01:49]} Rxf4 {[%emt 0:00:01]} 30. Rxb4 {[%emt 0:00:00]} f6 {[%emt 0:02:29]} 31. gxf6 {[%emt 0:01:02]} Rxf6 {[%emt 0:00:07]} 32. h4 {[%emt 0:00:55]} c3 {[%emt 0:02:37]} 33. bxc3 {[%emt 0:01:51]} Rxc3 {[%emt 0:00:10]} 34. Rb8+ {[%emt 0:00:23]} Rf8 {[%emt 0:00:57]} 35. Rb7 {[%emt 0:00:50]} Rcf3 {[%emt 0:00:32]} 36. Kc2 {[%emt 0:04:06]} Rf2+ {[%emt 0:00:24]} 37. Kb1 {[%emt 0:00:57]} Rf1+ {[%emt 0:00:45]} 38. Rxf1 {[%emt 0:00:30]} Rxf1+ {[%emt 0:00:00]} 39. Kb2 {[%emt 0:00:00]} Rf6 {[%emt 0:00:32]} 40. Kb3 {[%emt 0:00:00]} g6 {[%emt 0:00:00]} 41. a4 {[%emt 0:05:54]} h6 {[%emt 0:09:18]} 42. a5 {[%emt 0:08:05]} g5 {[%emt 0:05:16]} 43. hxg5 {[%emt 0:02:54]} hxg5 {[%emt 0:00:02]} 44. Rb6 {[%emt 0:02:33]} Kg7 {[%emt 0:01:21]} 45. Kc4 {[%emt 0:03:29]} Kg6 {[%emt 0:16:53]} 46. Kd3 {[%emt 0:05:41]} Kf5 {[%emt 0:00:36]} 47. Ke3 {[%emt 0:03:18]} Ke5 {[%emt 0:00:22]} 48. Rxf6 {[%emt 0:02:46]} Kxf6 {[%emt 0:00:03]} 49. Kf3 {[%emt 0:00:16]} Kf5 {[%emt 0:01:39]} 50. Kg3 {[%emt 0:00:23]} Ke5 {[%emt 0:00:57]} 51. Kg4 {[%emt 0:00:07]} Kf6 {[%emt 0:00:07]} 52. Kf3 {[%emt 0:00:15]} Kf5 {[%emt 0:00:44]} 53. Kg3 {[%emt 0:00:30]} g4 {[%emt 0:00:00]} 54. Kg2 {[%emt 0:00:08]} Kf4 {[%emt 0:00:36]} 55. Kf2 {[%emt 0:00:17]} g3+ {[%emt 0:00:20]} 56. Kg2 {[%emt 0:00:37]} Kg4 {[%emt 0:00:30]} 57. Kg1 {[%emt 0:00:00]} Kf3 {[%emt 0:00:00]} 58. Kf1 {[%emt 0:00:26]} Ke4 {[%emt 0:00:23]} 59. Kg2 {[%emt 0:00:00]} Kd4 {[%emt 0:00:11]} 60. Kxg3 {[%emt 0:00:15]} Kc3 {[%emt 0:00:00]} 61. Kf3 {[%emt 0:00:15]} Kb4 {[%emt 0:00:00]} 62. Ke3 {[%emt 0:00:12]} Kxa5 {[%emt 0:00:17]} 63. Kd3 {[%emt 0:00:30]} Kb4 {[%emt 0:00:00]} 64. Kc2 {[%emt 0:00:18]} Ka3 {[%emt 0:00:00]} 65. Kb1 {[%emt 0:00:06]} 1/2-1/2

[Event "TUR-chT Superleague 2018"]
[Site "Ankara"]
[Date "2018.08.03"]
[Round "10"]
[White "Kaya, Onur"]
[Black "Uzumcu, Ahmet Utku"]
[Result "0-1"]
[ECO "D03"]
[WhiteElo "1692"]
[BlackElo "2231"]
[Annotator "NA"]
[PlyCount "82"]
[EventDate "2018.07.25"]
[EventType "team-tourn"]
[EventCountry "TUR"]
[SourceTitle "playchess.com"]
[Source "ChessBase"]
[SourceQuality "1"]
[TimeControl "40/5400+30:1800+30"]

1. d4 {[%emt 0:00:30]} Nf6 {[%emt 0:00:30]} 2. Nf3 {[%emt 0:00:00]} g6 {[%emt 0:00:00]} 3. Bg5 {[%emt 0:00:00]} Bg7 {[%emt 0:01:00]} 4. Nbd2 {[%emt 0:00:30]} d5 {[%emt 0:01:30]} 5. e3 {[%emt 0:04:30]} O-O {[%emt 0:01:30]} 6. Bd3 {[%emt 0:04:30]} c5 {[%emt 0:02:30]} 7. c3 {[%emt 0:05:30]} b6 {[%emt 0:01:30]} 8. O-O {[%emt 0:16:30]} Bb7 {[%emt 0:01:30]} 9. Qc2 {[%emt 0:14:30]} Nc6 {[%emt 0:01:30]} 10. Rad1 {[%emt 0:00:30]} Rc8 {[%emt 0:04:30]} 11. Qb1 {[%emt 0:03:30]} cxd4 {[%emt 0:02:30]} 12. exd4 {[%emt 0:03:30]} h6 {[%emt 0:03:30]} 13. Bxf6 {[%emt 0:16:30]} Bxf6 {[%emt 0:00:30]} 14. Rfe1 {[%emt 0:00:30]} Qc7 {[%emt 0:02:30]} 15. Re3 {[%emt 0:05:30]} Bg7 {[%emt 0:12:30]} 16. h4 {[%emt 0:04:01]} e6 {[%emt 0:02:30]} 17. h5 {[%emt 0:05:11]} g5 {[%emt 0:01:30]} 18. Nf1 {[%emt 0:09:11]} Rce8 {[%emt 0:05:30]} 19. Rde1 {[%emt 0:00:53]} a6 {[%emt 0:06:30]} 20. Qd1 {[%emt 0:01:47]} Bc8 {[%emt 0:05:30]} 21. Bb1 {[%emt 0:01:33]} f5 {[%emt 0:00:30]} 22. Qd3 {[%emt 0:00:19]} Qf7 {[%emt 0:03:30]} 23. g4 {[%emt 0:00:11]} Ne7 {[%emt 0:04:30]} 24. Ng3 {[%emt 0:00:50]} Bh8 {[%emt 0:00:30]} 25. gxf5 {[%emt 0:00:59]} Nxf5 {[%emt 0:00:30]} 26. Nxf5 {[%emt 0:01:16]} exf5 {[%emt 0:00:30]} 27. Ne5 {[%emt 0:00:00]} Bxe5 {[%emt 0:03:30]} 28. dxe5 {[%emt 0:00:00]} Qxh5 {[%emt 0:04:30]} 29. Qxd5+ {[%emt 0:00:33]} Be6 {[%emt 0:00:30]} 30. Qg2 {[%emt 0:00:57]} f4 {[%emt 0:04:30]} 31. Rd3 {[%emt 0:00:42]} g4 {[%emt 0:04:59]} 32. Qh2 {[%emt 0:00:29]} Qg5 {[%emt 0:00:37]} 33. b3 {[%emt 0:00:30]} h5 {[%emt 0:01:06]} 34. Rd4 {[%emt 0:00:30]} h4 {[%emt 0:01:31]} 35. Red1 {[%emt 0:00:34]} g3 {[%emt 0:02:28]} 36. fxg3 {[%emt 0:00:15]} fxg3 {[%emt 0:00:21]} 37. Qxh4 {[%emt 0:01:09]} Qe3+ {[%emt 0:00:17]} 38. Kh1 {[%emt 0:00:01]} Qf3+ {[%emt 0:00:24]} 39. Kg1 {[%emt 0:00:02]} Qf2+ {[%emt 0:00:09]} 40. Kh1 {[%emt 0:00:00]} g2+ {[%emt 0:00:00]} 41. Kh2 {[%emt 0:02:07]} g1=Q# {[%emt 0:01:38]} 0-1

[Event "TUR-chT Superleague 2018"]
[Site "Ankara"]
[Date "2018.08.03"]
[Round "10"]
[White "Incecik, Seyma Zeynep"]
[Black "Ozbek, Busra"]
[Result "1-0"]
[ECO "A01"]
[WhiteElo "1673"]
[BlackElo "1848"]
[Annotator "NA"]
[PlyCount "113"]
[EventDate "2018.07.25"]
[EventType "team-tourn"]
[EventCountry "TUR"]
[SourceTitle "playchess.com"]
[Source "ChessBase"]
[SourceQuality "1"]
[TimeControl "40/5400+30:1800+30"]

1. b3 {[%emt 0:00:30]} e5 {[%emt 0:00:30]} 2. Bb2 {[%emt 0:00:30]} Nc6 {[%emt 0:00:30]} 3. e3 {[%emt 0:00:00]} Nf6 {[%emt 0:00:00]} 4. Bb5 {[%emt 0:00:00]} Bd6 {[%emt 0:00:00]} 5. Na3 {[%emt 0:00:00]} e4 {[%emt 0:00:30]} 6. Nc4 {[%emt 0:00:00]} Be7 {[%emt 0:00:30]} 7. Bxc6 {[%emt 0:00:30]} bxc6 {[%emt 0:00:30]} 8. Ne2 {[%emt 0:00:30]} O-O {[%emt 0:00:00]} 9. O-O {[%emt 0:00:30]} d5 {[%emt 0:11:00]} 10. Ne5 {[%emt 0:01:30]} Qe8 {[%emt 0:06:30]} 11. c4 {[%emt 0:08:30]} Bd6 {[%emt 0:05:30]} 12. d4 {[%emt 0:05:30]} Bb7 {[%emt 0:23:30]} 13. Qc1 {[%emt 0:20:30]} Qe7 {[%emt 0:08:30]} 14. Rd1 {[%emt 0:09:30]} Rfe8 {[%emt 0:14:30]} 15. Nf4 {[%emt 0:10:30]} g5 {[%emt 0:09:33]} 16. Ne2 {[%emt 0:01:30]} Bxe5 {[%emt 0:03:44]} 17. dxe5 {[%emt 0:00:30]} Ng4 {[%emt 0:00:00]} 18. Qc3 {[%emt 0:05:30]} Qxe5 {[%emt 0:01:47]} 19. Qxe5 {[%emt 0:00:30]} Nxe5 {[%emt 0:00:02]} 20. Bxe5 {[%emt 0:00:30]} Rxe5 {[%emt 0:00:01]} 21. c5 {[%emt 0:00:30]} Kf8 {[%emt 0:01:39]} 22. Rd4 {[%emt 0:10:30]} Ba6 {[%emt 0:01:58]} 23. Nc1 {[%emt 0:02:30]} Ree8 {[%emt 0:00:27]} 24. Ra4 {[%emt 0:02:46]} Bc8 {[%emt 0:03:46]} 25. Ne2 {[%emt 0:00:39]} Bd7 {[%emt 0:01:36]} 26. Ra6 {[%emt 0:03:32]} Re6 {[%emt 0:01:55]} 27. Nd4 {[%emt 0:00:09]} Rg6 {[%emt 0:00:00]} 28. Rb1 {[%emt 0:01:03]} Ke7 {[%emt 0:00:22]} 29. b4 {[%emt 0:00:24]} Kd8 {[%emt 0:03:17]} 30. Rb3 {[%emt 0:01:24]} Kc8 {[%emt 0:01:26]} 31. b5 {[%emt 0:03:25]} cxb5 {[%emt 0:01:04]} 32. c6 {[%emt 0:00:18]} Be8 {[%emt 0:00:44]} 33. Rxb5 {[%emt 0:02:01]} Rb8 {[%emt 0:00:23]} 34. Rxb8+ {[%emt 0:09:30]} Kxb8 {[%emt 0:00:30]} 35. Kf1 {[%emt 0:00:30]} f5 {[%emt 0:00:30]} 36. Ke1 {[%emt 0:00:30]} f4 {[%emt 0:00:30]} 37. Kd2 {[%emt 0:00:30]} Rh6 {[%emt 0:00:30]} 38. h3 {[%emt 0:00:30]} f3 {[%emt 0:00:30]} 39. gxf3 {[%emt 0:00:30]} Rxh3 {[%emt 0:00:30]} 40. fxe4 {[%emt 0:00:30]} dxe4 {[%emt 0:00:00]} 41. Ra5 {[%emt 0:11:49]} Rh5 {[%emt 0:07:46]} 42. Rf5 {[%emt 0:00:38]} g4 {[%emt 0:01:30]} 43. Rf8 {[%emt 0:01:14]} Re5 {[%emt 0:00:30]} 44. Nf5 {[%emt 0:00:08]} Kc8 {[%emt 0:01:30]} 45. Kc3 {[%emt 0:12:03]} Kd8 {[%emt 0:10:35]} 46. Kd4 {[%emt 0:00:30]} Re6 {[%emt 0:03:38]} 47. Ng7 {[%emt 0:03:22]} Rd6+ {[%emt 0:01:27]} 48. Ke5 {[%emt 0:01:49]} Ke7 {[%emt 0:00:20]} 49. Rxe8+ {[%emt 0:00:58]} Kf7 {[%emt 0:00:04]} 50. Re6 {[%emt 0:00:12]} Rd2 {[%emt 0:01:48]} 51. Nf5 {[%emt 0:00:16]} Rxa2 {[%emt 0:00:19]} 52. Re7+ {[%emt 0:00:18]} Kg6 {[%emt 0:00:37]} 53. Rg7+ {[%emt 0:00:34]} Kh5 {[%emt 0:00:30]} 54. Rxh7+ {[%emt 0:00:00]} Kg5 {[%emt 0:00:17]} 55. Rg7+ {[%emt 0:00:07]} Kh5 {[%emt 0:00:00]} 56. Kf6 {[%emt 0:00:05]} g3 {[%emt 0:00:38]} 57. Rg5# {[%emt 0:00:36]} 1-0